fUST/lending_fUST_20240824
["ID","MTS","AMOUNT","RATE_DAILY","PERIOD"]
[335715148,1724460646572,-500.0,0.00013698,2]
[335715150,1724460646581,-500.0,0.00013698,2]
[335715152,1724460646591,-500.0,0.00013698,2]
[335715169,1724460646741,-500.0,0.00013698,2]
[335715171,1724460646751,-500.0,0.00013698,2]
[335715173,1724460646761,-2081.06,0.00013698,2]
[335715175,1724460646770,-1021.12,0.00013698,2]
[335715177,1724460646779,-500.0,0.00013698,2]
[335715179,1724460646789,-500.0,0.00013698,2]
[335715181,1724460646799,-1008.68,0.00013698,2]
[335715183,1724460646809,-500.0,0.00013698,2]
[335715185,1724460646818,-1126.96,0.00013698,2]
[335715187,1724460646828,-500.0,0.00013698,2]
[335715189,1724460646838,-595.98,0.00013698,2]
[335715191,1724460646850,-9517.66,0.00013698,2]
[335715193,1724460646859,-500.0,0.00013698,2]
[335715195,1724460646869,-500.0,0.00013698,2]
[335715197,1724460646879,-514.37785923,0.00013698,2]
[335715199,1724460646888,-690.38,0.00013698,2]
[335715201,1724460646898,-2055.48,0.00013698,2]
[335715203,1724460646907,-731.11,0.00013698,2]
[335715205,1724460646917,-500.0,0.00013698,2]
[335715208,1724460646928,-500.0,0.00013698,2]
[335715210,1724460646939,-500.0,0.00013698,2]
[335715212,1724460646950,-500.0,0.00013698,2]
[335715214,1724460646961,-509.13193573,0.00013698,2]
[335715216,1724460646971,-500.0,0.00013698,2]
[335715218,1724460646980,-500.0,0.00013698,2]
[335715220,1724460646990,-1397.57,0.00013698,2]
[335715222,1724460646999,-500.0,0.00013698,2]
[335715225,1724460647010,-717.24,0.00013698,2]
[335715227,1724460647020,-980.47,0.00013698,2]
[335715229,1724460647032,-3142.11,0.00013698,2]
[335715231,1724460647043,-500.0,0.00013698,2]
[335715233,1724460647053,-672.61,0.00013698,2]
[335715235,1724460647063,-1707.49,0.00013698,2]
[335715237,1724460647072,-824.13,0.00013698,2]
[335715239,1724460647082,-606.12,0.00013698,2]
[335715241,1724460647091,-1254.55,0.00013698,2]
[335715243,1724460647102,-500.0,0.00013698,2]
[335715245,1724460647111,-500.0,0.00013698,2]
[335715247,1724460647122,-1488.96,0.00013698,2]
[335715248,1724460647133,-1488.96,0.00013698,2]
[335715249,1724460647143,-500.0,0.00013698,2]
[335715250,1724460647152,-1488.96,0.00013698,2]
[335715251,1724460647177,-1488.96,0.00013698,2]
[335715252,1724460647186,-1488.96,0.00013698,2]
[335715253,1724460647196,-1488.96,0.00013698,2]
[335715254,1724460647205,-1488.96,0.00013698,2]
[335715255,1724460647217,-841.82,0.00013698,2]
[335715256,1724460647226,-1488.96,0.00013698,2]
[335715257,1724460647236,-565.77,0.00013698,2]
[335715259,1724460647246,-1488.96,0.00013698,2]
[335715261,1724460647256,-1488.96,0.00013698,2]
[335715263,1724460647265,-1488.96,0.00013698,2]
[335715265,1724460647274,-1488.96,0.00013698,2]
[335715267,1724460647284,-1488.96,0.00013698,2]
[335715269,1724460647295,-1488.96,0.00013698,2]
[335715271,1724460647305,-500.0,0.00013698,2]
[335715273,1724460647314,-500.0,0.00013698,2]
[335715275,1724460647323,-1488.96,0.00013698,2]
[335715277,1724460647333,-2112.97,0.00013698,2]
[335715279,1724460647342,-500.0,0.00013698,2]
[335715281,1724460647352,-1488.96,0.00013698,2]
[335715283,1724460647362,-505.32442441,0.00013698,2]
[335715285,1724460647372,-1488.96,0.00013698,2]
[335715287,1724460647382,-500.0,0.00013698,2]
[335715289,1724460647392,-1488.96,0.00013698,2]
[335715291,1724460647402,-500.0,0.00013698,2]
[335715293,1724460647411,-1839.36,0.00013698,2]
[335715296,1724460647421,-826.84,0.00013698,2]
[335715297,1724460647431,-942.52,0.00013698,2]
[335715300,1724460647441,-826.84,0.00013698,2]
[335715302,1724460647451,-826.84,0.00013698,2]
[335715304,1724460647461,-826.84,0.00013698,2]
[335715306,1724460647471,-826.84,0.00013698,2]
[335715308,1724460647480,-500.0,0.00013698,2]
[335715310,1724460647490,-826.84,0.00013698,2]
[335715312,1724460647499,-826.84,0.00013698,2]
[335715314,1724460647508,-826.84,0.00013698,2]
[335715316,1724460647519,-826.84,0.00013698,2]
[335715318,1724460647532,-826.84,0.00013698,2]
[335715320,1724460647542,-826.84,0.00013698,2]
[335715322,1724460647552,-826.84,0.00013698,2]
[335715324,1724460647562,-826.84,0.00013698,2]
[335715326,1724460647572,-826.84,0.00013698,2]
[335715328,1724460647581,-826.84,0.00013698,2]
[335715330,1724460647591,-826.84,0.00013698,2]
[335715332,1724460647601,-509.03,0.00013698,2]
[335715334,1724460647610,-826.84,0.00013698,2]
[335715336,1724460647620,-500.0,0.00013698,2]
[335715338,1724460647630,-826.84,0.00013698,2]
[335715340,1724460647639,-826.84,0.00013698,2]
[335715342,1724460647651,-826.84,0.00013698,2]
[335715344,1724460647660,-500.0,0.00013698,2]
[335715346,1724460647670,-826.84,0.00013698,2]
[335715348,1724460647681,-826.84,0.00013698,2]
[335715350,1724460647690,-826.84,0.00013698,2]
[335715352,1724460647700,-500.0,0.00013698,2]
[335715354,1724460647709,-500.0,0.00013698,2]
[335715356,1724460647719,-500.0,0.00013698,2]
[335715358,1724460647730,-827.04632755,0.00013698,2]
[335715360,1724460647739,-1990.45,0.00013698,2]
[335715362,1724460647749,-151.0,0.00013699,2]
[335715364,1724460647759,-3000.0,0.00013699,2]
[335715366,1724460647768,-151.0,0.00013699,2]
[335715368,1724460647778,-151.0,0.00013699,2]
[335715370,1724460647788,-2316.753774,0.00013699,2]
[335715372,1724460647797,-2316.753774,0.00013699,2]
[335715374,1724460647807,-151.0,0.00013699,2]
[335715376,1724460647817,-151.0,0.00013699,2]
[335715378,1724460647827,-152.614448,0.00013699,2]
[335715380,1724460647837,-307.964821,0.00013699,2]
[335715382,1724460647847,-151.0,0.00013699,2]
[335715384,1724460647856,-307.964821,0.00013699,2]
[335715386,1724460647866,-383.042266,0.00013699,2]
[335715388,1724460647875,-383.042266,0.00013699,2]
[335715390,1724460647885,-949.862688,0.00013699,2]
[335715392,1724460647894,-2902.623721,0.00013699,2]
[335715394,1724460647904,-151.0,0.00013699,2]
[335715396,1724460647913,-2902.623721,0.00013699,2]
[335715398,1724460647923,-1033.674367,0.00013699,2]
[335715400,1724460647932,-151.0,0.00013699,2]
[335715402,1724460647941,-1033.674367,0.00013699,2]
[335715404,1724460647951,-151.0,0.00013699,2]
[335715407,1724460647962,-1040.471146,0.00013699,2]
[335715409,1724460647972,-1040.471146,0.00013699,2]
[335715411,1724460647981,-846.337634,0.00013699,2]
[335715413,1724460647990,-3997.270376,0.00013699,2]
[335715415,1724460647999,-846.337634,0.00013699,2]
[335715417,1724460648009,-3997.270376,0.00013699,2]
[335715419,1724460648019,-1186.915058,0.00013699,2]
[335715421,1724460648029,-434.711961,0.00013699,2]
[335715423,1724460648038,-1186.915058,0.00013699,2]
[335715425,1724460648047,-434.711961,0.00013699,2]
[335715427,1724460648057,-151.0,0.00013699,2]
[335715429,1724460648067,-151.0,0.00013699,2]
[335715431,1724460648076,-151.0,0.00013699,2]
[335715433,1724460648085,-943.315749,0.00013699,2]
[335715435,1724460648095,-226.733363,0.00013699,2]
[335715437,1724460648104,-943.315749,0.00013699,2]
[335715439,1724460648114,-404.541054,0.00013699,2]
[335715441,1724460648123,-226.733363,0.00013699,2]
[335715443,1724460648132,-404.541054,0.00013699,2]
[335715445,1724460648143,-285.498925,0.00013699,2]
[335715447,1724460648153,-204.01416,0.00013699,2]
[335715449,1724460648163,-204.01416,0.00013699,2]
[335715451,1724460648173,-170.29989,0.00013699,2]
[335715453,1724460648183,-151.0,0.00013699,2]
[335715455,1724460648192,-170.29989,0.00013699,2]
[335715457,1724460648202,-151.0,0.00013699,2]
[335715459,1724460648212,-151.0,0.00013699,2]
[335715461,1724460648221,-151.0,0.00013699,2]
[335715463,1724460648231,-151.0,0.00013699,2]
[335715465,1724460648241,-151.0,0.00013699,2]
[335715468,1724460648252,-151.0,0.00013699,2]
[335715470,1724460648263,-202.985312,0.00013699,2]
[335715472,1724460648272,-202.985312,0.00013699,2]
[335715474,1724460648282,-151.0,0.00013699,2]
[335715476,1724460648292,-4828.180092,0.00013699,2]
[335715478,1724460648301,-4828.180092,0.00013699,2]
[335715479,1724460648311,-457.790131,0.00013699,2]
[335715482,1724460648320,-457.790131,0.00013699,2]
[335715484,1724460648330,-2503.485416,0.00013699,2]
[335715486,1724460648340,-1854.285695,0.00013699,2]
[335715488,1724460648350,-1854.285695,0.00013699,2]
[335715490,1724460648359,-151.0,0.00013699,2]
[335715492,1724460648369,-151.0,0.00013699,2]
[335715494,1724460648378,-500.0,0.00013699,2]
[335715496,1724460648388,-500.0,0.00013699,2]
[335715498,1724460648397,-500.0,0.00013699,2]
[335715500,1724460648407,-500.0,0.00013699,2]
[335715502,1724460648417,-500.0,0.00013699,2]
[335715504,1724460648427,-500.0,0.00013699,2]
[335715506,1724460648437,-500.0,0.00013699,2]
[335715508,1724460648446,-500.0,0.00013699,2]
[335715510,1724460648456,-500.0,0.00013699,2]
[335715512,1724460648465,-500.0,0.00013699,2]
[335715514,1724460648475,-500.0,0.00013699,2]
[335715516,1724460648486,-500.0,0.00013699,2]
[335715518,1724460648496,-500.0,0.00013699,2]
[335715520,1724460648505,-500.0,0.00013699,2]
[335715522,1724460648515,-500.0,0.00013699,2]
[335715524,1724460648528,-500.0,0.00013699,2]
[335715526,1724460648537,-500.0,0.00013699,2]
[335715528,1724460648547,-500.0,0.00013699,2]
[335715530,1724460648557,-500.0,0.00013699,2]
[335715532,1724460648567,-313.83987538,0.00013699,2]
[335715534,1724460648577,-500.0,0.00013699,2]
[335715536,1724460648587,-500.0,0.00013699,2]
[335715538,1724460648597,-500.0,0.00013699,2]
[335715540,1724460648608,-500.0,0.00013699,2]
[335715542,1724460648617,-500.0,0.00013699,2]
[335715544,1724460648627,-500.0,0.00013699,2]
[335715546,1724460648637,-500.0,0.00013699,2]
[335715548,1724460648646,-500.0,0.00013699,2]
[335715550,1724460648656,-500.0,0.00013699,2]
[335715552,1724460648666,-500.0,0.00013699,2]
[335715554,1724460648676,-500.0,0.00013699,2]
[335715556,1724460648686,-500.0,0.00013699,2]
[335715558,1724460648696,-500.0,0.00013699,2]
[335715560,1724460648705,-500.0,0.00013699,2]
[335715562,1724460648715,-500.0,0.00013699,2]
[335715564,1724460648724,-500.0,0.00013699,2]
[335715566,1724460648733,-500.00000002,0.00013699,2]
[335715568,1724460648743,-500.0,0.00013699,2]
[335715570,1724460648754,-5465.35175085,0.00013699,2]
[335715572,1724460648764,-194.89692396,0.00013699,2]
[335715574,1724460648774,-151.0,0.00013699,2]
[335715576,1724460648783,-214.835708,0.00013699,2]
[335715578,1724460648793,-214.835708,0.00013699,2]
[335715580,1724460648803,-391.249693,0.00013699,2]
[335715582,1724460648812,-391.249693,0.00013699,2]
[335715584,1724460648822,-151.0,0.00013699,2]
[335715586,1724460648831,-151.0,0.00013699,2]
[335715588,1724460648841,-3997.270376,0.00013699,2]
[335715590,1724460648853,-3997.270376,0.00013699,2]
[335715592,1724460648863,-1186.915058,0.00013699,2]
[335715595,1724460648873,-434.711961,0.00013699,2]
[335715597,1724460648883,-1186.915058,0.00013699,2]
[335715599,1724460648893,-434.711961,0.00013699,2]
[335715601,1724460648903,-151.0,0.00013699,2]
[335715603,1724460648913,-151.0,0.00013699,2]
[335715605,1724460648922,-151.0,0.00013699,2]
[335715607,1724460648932,-943.315749,0.00013699,2]
[335715609,1724460648941,-226.733363,0.00013699,2]
[335715611,1724460648951,-943.315749,0.00013699,2]
[335715613,1724460648960,-404.541054,0.00013699,2]
[335715615,1724460648971,-226.733363,0.00013699,2]
[335715617,1724460648981,-404.541054,0.00013699,2]
[335715619,1724460648992,-204.01416,0.00013699,2]
[335715621,1724460649003,-204.01416,0.00013699,2]
[335715623,1724460649012,-1262.367388,0.00013699,2]
[335715625,1724460649022,-1262.367388,0.00013699,2]
[335715627,1724460649032,-151.0,0.00013699,2]
[335715629,1724460649042,-151.0,0.00013699,2]
[335715631,1724460649052,-151.0,0.00013699,2]
[335715633,1724460649063,-151.0,0.00013699,2]
[335715635,1724460649073,-151.0,0.00013699,2]
[335715637,1724460649083,-4828.180092,0.00013699,2]
[335715639,1724460649094,-4828.180092,0.00013699,2]
[335715641,1724460649104,-457.790131,0.00013699,2]
[335715643,1724460649114,-457.790131,0.00013699,2]
[335715645,1724460649124,-1854.285695,0.00013699,2]
[335715647,1724460649134,-1854.285695,0.00013699,2]
[335715649,1724460649144,-151.0,0.00013699,2]
[335715651,1724460649154,-151.0,0.00013699,2]
[335715653,1724460649164,-150.112233,0.000137,2]
[335715655,1724460649174,-150.112233,0.000137,2]
[335715657,1724460649184,-150.112233,0.000137,2]
[335715660,1724460649194,-150.112233,0.000137,2]
[335715662,1724460649204,-150.112233,0.000137,2]
[335715664,1724460649214,-150.112233,0.000137,2]
[335715666,1724460649224,-150.112233,0.000137,2]
[335715668,1724460649234,-150.112233,0.000137,2]
[335715686,1724460649396,-150.112233,0.000137,2]
[335715688,1724460649409,-150.112233,0.000137,2]
[335715690,1724460649419,-150.112233,0.000137,2]
[335715692,1724460649430,-150.112233,0.000137,2]
[335715694,1724460649440,-500.0,0.00013766,2]
[335715696,1724460649449,-170.29989,0.00013772,2]
[335715698,1724460649460,-170.29989,0.00013772,2]
[335715700,1724460649471,-151.0,0.00013772,2]
[335715702,1724460649481,-151.0,0.00013772,2]
[335715704,1724460649491,-151.0,0.00013772,2]
[335715707,1724460649501,-202.985312,0.00013772,2]
[335715709,1724460649510,-202.985312,0.00013772,2]
[335715711,1724460649521,-11890.70478032,0.00013772,2]
[335715713,1724460649534,-1535.5,0.00013799,2]
[335715715,1724460649544,-150.112233,0.000138,2]
[335715717,1724460649553,-150.112233,0.000138,2]
[335715719,1724460649565,-150.112233,0.000138,2]
[335715721,1724460649575,-150.112233,0.000138,2]
[335715723,1724460649584,-150.112233,0.000138,2]
[335715725,1724460649594,-150.112233,0.000138,2]
[335715727,1724460649605,-150.112233,0.000138,2]
[335715729,1724460649615,-150.112233,0.000138,2]
[335715731,1724460649625,-150.112233,0.000138,2]
[335715733,1724460649635,-173.505293,0.000138,2]
[335715734,1724460649644,-150.112233,0.000138,2]
[335715736,1724460649654,-150.112233,0.000138,2]
[335715738,1724460649664,-420.0,0.00013806,2]
[335715740,1724460649675,-207.3948014,0.00013878,2]
[335715743,1724460649685,-207.7006306,0.00013881,2]
[335715745,1724460649696,-414.1311257,0.00013881,2]
[335715747,1724460649706,-207.7006306,0.00013881,2]
[335715749,1724460649716,-1015.95,0.00013899,2]
[335715751,1724460649726,-1488.96,0.00013899,2]
[335715753,1724460649736,-150.112233,0.000139,2]
[335715755,1724460649746,-150.112233,0.000139,2]
[335715757,1724460649756,-150.112233,0.000139,2]
[335715759,1724460649766,-150.112233,0.000139,2]
[335715761,1724460649775,-150.112233,0.000139,2]
[335715763,1724460649785,-150.112233,0.000139,2]
[335715765,1724460649794,-150.112233,0.000139,2]
[335715767,1724460649804,-150.112233,0.000139,2]
[335715769,1724460649813,-150.112233,0.000139,2]
[335715771,1724460649823,-150.112233,0.000139,2]
[335715773,1724460649833,-153.0,0.00013951,2]
[335715775,1724460649843,-1535.5,0.00013971,2]
[335715777,1724460649853,-1535.5,0.00013971,2]
[335715779,1724460649863,-1535.5,0.00013971,2]
[335715781,1724460649873,-1535.5,0.00013971,2]
[335715783,1724460649883,-1535.5,0.00013971,2]
[335715785,1724460649892,-1535.5,0.00013971,2]
[335715787,1724460649902,-1535.5,0.00013971,2]
[335715789,1724460649911,-1535.5,0.00013971,2]
[335715791,1724460649924,-1535.67197633,0.00013971,2]
[335715794,1724460649946,-2902.623721,0.00013971,2]
[335715796,1724460649956,-151.0,0.00013971,2]
[335715798,1724460649966,-2902.623721,0.00013971,2]
[335715800,1724460649978,-1040.471146,0.00013971,2]
[335715802,1724460649988,-1040.471146,0.00013971,2]
[335715804,1724460649997,-882.97,0.00013971,2]
[335715806,1724460650007,-882.97,0.00013971,2]
[335715808,1724460650018,-882.97,0.00013971,2]
[335715810,1724460650027,-882.97,0.00013971,2]
[335715812,1724460650038,-882.97,0.00013971,2]
[335715813,1724460650048,-882.97,0.00013971,2]
[335715814,1724460650058,-883.19,0.00013971,2]
[335715815,1724460650069,-1015.95,0.00013971,2]
[335715816,1724460650078,-1015.95,0.00013971,2]
[335715817,1724460650088,-1015.95,0.00013971,2]
[335715818,1724460650097,-1015.95,0.00013971,2]
[335715819,1724460650108,-1016.08,0.00013971,2]
[335715820,1724460650120,-1064.07704472,0.00013971,2]
[335715821,1724460650129,-301.66413705,0.00013971,2]
[335715822,1724460650141,-1488.96,0.00013971,2]
[335715823,1724460650150,-1488.96,0.00013971,2]
[335715825,1724460650162,-303.97484667,0.00013971,2]
[335715827,1724460650172,-1488.96,0.00013971,2]
[335715829,1724460650181,-1488.96,0.00013971,2]
[335715831,1724460650191,-1489.12419296,0.00013971,2]
[335715833,1724460650200,-156.82494329,0.00013971,2]
[335715835,1724460650210,-151.0,0.00013972,2]
[335715837,1724460650220,-151.0,0.00013972,2]
[335715839,1724460650230,-500.0,0.00013972,2]
[335715841,1724460650240,-500.0,0.00013972,2]
[335715844,1724460650252,-818.37,0.00013972,2]
[335715846,1724460650263,-597.10322379,0.00013972,2]
[335715848,1724460650273,-600.44,0.00013972,2]
[335715850,1724460650283,-500.0,0.00013972,2]
[335715852,1724460650292,-500.0,0.00013972,2]
[335715854,1724460650303,-500.0,0.00013972,2]
[335715856,1724460650313,-500.0,0.00013972,2]
[335715858,1724460650323,-590.77,0.00013972,2]
[335715860,1724460650335,-500.0,0.00013972,2]
[335715862,1724460650345,-500.0,0.00013972,2]
[335715865,1724460650356,-500.0,0.00013972,2]
[335715867,1724460650366,-220.157913,0.00013972,2]
[335715869,1724460650376,-220.157913,0.00013972,2]
[335715871,1724460650386,-220.157913,0.00013972,2]
[335715873,1724460650395,-151.0,0.00013972,2]
[335715875,1724460650407,-220.157913,0.00013972,2]
[335715878,1724460650419,-151.0,0.00013972,2]
[335715880,1724460650429,-500.0,0.00013972,2]
[335715882,1724460650440,-151.0,0.00013972,2]
[335715884,1724460650450,-151.0,0.00013972,2]
[335715886,1724460650461,-500.47986134,0.00013972,2]
[335715888,1724460650471,-500.0,0.00013972,2]
[335715890,1724460650482,-151.0,0.00013972,2]
[335715892,1724460650492,-151.0,0.00013972,2]
[335715894,1724460650502,-755.5,0.00013972,2]
[335715895,1724460650513,-151.0,0.00013972,2]
[335715896,1724460650525,-151.0,0.00013972,2]
[335715897,1724460650539,-547.79,0.00013972,2]
[335715898,1724460650548,-500.0,0.00013972,2]
[335715899,1724460650559,-500.0,0.00013972,2]
[335715900,1724460650569,-937.7,0.00013972,2]
[335715901,1724460650579,-500.0,0.00013972,2]
[335715902,1724460650588,-500.0,0.00013972,2]
[335715903,1724460650598,-292.39527355,0.00013972,2]
[335715904,1724460650607,-500.0,0.00013972,2]
[335715905,1724460650617,-589.95,0.00013972,2]
[335715906,1724460650628,-551.39,0.00013972,2]
[335715907,1724460650639,-500.0,0.00013972,2]
[335715908,1724460650649,-500.0,0.00013972,2]
[335715909,1724460650660,-640.38,0.00013972,2]
[335715910,1724460650670,-1587.24,0.00013972,2]
[335715911,1724460650679,-1147.06,0.00013972,2]
[335715912,1724460650689,-500.0,0.00013972,2]
[335715914,1724460650699,-500.0,0.00013972,2]
[335715916,1724460650709,-557.15,0.00013972,2]
[335715918,1724460650718,-928.46,0.00013972,2]
[335715920,1724460650727,-151.0,0.00013972,2]
[335715922,1724460650737,-151.0,0.00013972,2]
[335715924,1724460650746,-151.0,0.00013972,2]
[335715926,1724460650755,-500.0,0.00013972,2]
[335715928,1724460650765,-500.0,0.00013972,2]
[335715930,1724460650774,-502.16119231,0.00013972,2]
[335715932,1724460650783,-500.0,0.00013972,2]
[335715933,1724460650793,-1618.12,0.00013972,2]
[335715935,1724460650802,-500.0,0.00013972,2]
[335715937,1724460650812,-500.0,0.00013972,2]
[335715939,1724460650821,-816.18,0.00013972,2]
[335715941,1724460650830,-500.0,0.00013972,2]
[335715943,1724460650840,-500.0,0.00013972,2]
[335715945,1724460650849,-500.0,0.00013972,2]
[335715947,1724460650859,-500.0,0.00013972,2]
[335715949,1724460650868,-1188.45,0.00013972,2]
[335715951,1724460650878,-151.0,0.00013972,2]
[335715953,1724460650887,-151.0,0.00013972,2]
[335715955,1724460650896,-500.0,0.00013972,2]
[335715957,1724460650906,-151.0,0.00013972,2]
[335715959,1724460650916,-151.0,0.00013972,2]
[335715961,1724460650926,-500.0,0.00013972,2]
[335715963,1724460650936,-500.0,0.00013972,2]
[335715965,1724460650947,-500.0,0.00013972,2]
[335715967,1724460650956,-500.0,0.00013972,2]
[335715969,1724460650966,-1293.72,0.00013972,2]
[335715971,1724460650976,-500.0,0.00013972,2]
[335715973,1724460650986,-701.38,0.00013972,2]
[335715975,1724460650997,-601.69,0.00013972,2]
[335715977,1724460651006,-500.0,0.00013972,2]
[335715979,1724460651016,-779.76,0.00013972,2]
[335715981,1724460651027,-500.0,0.00013972,2]
[335715984,1724460651036,-500.0,0.00013972,2]
[335715985,1724460651046,-500.0,0.00013972,2]
[335715988,1724460651058,-500.0,0.00013972,2]
[335715990,1724460651067,-500.0,0.00013972,2]
[335715992,1724460651077,-228.644198,0.00013972,2]
[335715994,1724460651087,-228.644198,0.00013972,2]
[335715997,1724460651105,-835.85,0.00013972,2]
[335715999,1724460651118,-500.0,0.00013972,2]
[335716001,1724460651129,-500.0,0.00013972,2]
[335716003,1724460651140,-228.644198,0.00013972,2]
[335716005,1724460651152,-228.644198,0.00013972,2]
[335716007,1724460651162,-1027.7,0.00013972,2]
[335716009,1724460651171,-500.0,0.00013972,2]
[335716011,1724460651181,-500.0,0.00013972,2]
[335716012,1724460651190,-500.0,0.00013972,2]
[335716013,1724460651199,-432.917882,0.00013972,2]
[335716014,1724460651208,-500.0,0.00013972,2]
[335716015,1724460651218,-432.917882,0.00013972,2]
[335716016,1724460651227,-432.917882,0.00013972,2]
[335716017,1724460651236,-1004.7,0.00013972,2]
[335716019,1724460651246,-1235.67,0.00013972,2]
[335716021,1724460651255,-432.917882,0.00013972,2]
[335716023,1724460651266,-432.917882,0.00013972,2]
[335716025,1724460651276,-625.75,0.00013972,2]
[335716027,1724460651287,-432.917882,0.00013972,2]
[335716029,1724460651297,-500.0,0.00013972,2]
[335716032,1724460651309,-472.73768463,0.00013972,2]
[335716034,1724460651318,-693.18,0.00013972,2]
[335716036,1724460651327,-500.0,0.00013972,2]
[335716038,1724460651337,-500.0,0.00013972,2]
[335716040,1724460651347,-1430.68,0.00013972,2]
[335716042,1724460651356,-500.0,0.00013972,2]
[335716044,1724460651365,-718.53,0.00013972,2]
[335716046,1724460651375,-500.0,0.00013972,2]
[335716048,1724460651384,-500.0,0.00013972,2]
[335716050,1724460651394,-994.07,0.00013972,2]
[335716052,1724460651403,-500.0,0.00013972,2]
[335716054,1724460651413,-605.57534677,0.00013972,2]
[335716056,1724460651422,-500.0,0.00013972,2]
[335716058,1724460651431,-1647.97,0.00013972,2]
[335716060,1724460651440,-662.12,0.00013972,2]
[335716062,1724460651450,-500.0,0.00013972,2]
[335716064,1724460651460,-500.0,0.00013972,2]
[335716066,1724460651470,-500.0,0.00013972,2]
[335716069,1724460651481,-2007.58,0.00013972,2]
[335716071,1724460651490,-1082.88,0.00013972,2]
[335716073,1724460651502,-500.0,0.00013972,2]
[335716075,1724460651511,-631.4,0.00013972,2]
[335716077,1724460651523,-500.0,0.00013972,2]
[335716079,1724460651536,-500.0,0.00013972,2]
[335716082,1724460651547,-1778.26,0.00013972,2]
[335716084,1724460651558,-500.0,0.00013972,2]
[335716086,1724460651569,-500.0,0.00013972,2]
[335716088,1724460651578,-885.87,0.00013972,2]
[335716090,1724460651588,-500.0,0.00013972,2]
[335716092,1724460651598,-500.0,0.00013972,2]
[335716094,1724460651608,-500.0,0.00013972,2]
[335716096,1724460651619,-500.0,0.00013972,2]
[335716098,1724460651629,-500.0,0.00013972,2]
[335716100,1724460651640,-296.8741,0.00013972,2]
[335716102,1724460651649,-299.671123,0.00013972,2]
[335716104,1724460651660,-296.8741,0.00013972,2]
[335716106,1724460651669,-299.671123,0.00013972,2]
[335716108,1724460651681,-296.8741,0.00013972,2]
[335716110,1724460651690,-500.0,0.00013972,2]
[335716112,1724460651700,-299.671123,0.00013972,2]
[335716114,1724460651710,-296.8741,0.00013972,2]
[335716117,1724460651724,-296.8741,0.00013972,2]
[335716119,1724460651734,-299.671123,0.00013972,2]
[335716121,1724460651743,-296.8741,0.00013972,2]
[335716144,1724460651954,-299.671123,0.00013972,2]
[335716145,1724460651965,-500.0,0.00013972,2]
[335716147,1724460651975,-299.671123,0.00013972,2]
[335716149,1724460651985,-1313.88,0.00013972,2]
[335716150,1724460651994,-500.0,0.00013972,2]
[335716151,1724460652005,-500.0,0.00013972,2]
[335716152,1724460652015,-558.15636667,0.00013972,2]
[335716153,1724460652025,-500.0,0.00013972,2]
[335716154,1724460652035,-500.0,0.00013972,2]
[335716155,1724460652045,-946.98,0.00013972,2]
[335716156,1724460652055,-856.8,0.00013972,2]
[335716157,1724460652065,-500.0,0.00013972,2]
[335716158,1724460652074,-985.45,0.00013972,2]
[335716159,1724460652083,-500.0,0.00013972,2]